Cogmind - Beta 13 @@@ ROGUE MODE // 2024.03.31 @ 11:24:45 Player: Sixten Result: Destroyed by S-10 Pest with Light Assault Rifle Performance ------------- Evolutions (0) 0 Regions Visited (2) 400 Robots Destroyed (13) 65 Value Destroyed (268) 268 Prototype IDs (0) 0 Alien Tech Used (0) 0 Bonus (0) 0 TOTAL SCORE: 733 Bonus ------- None Cogmind --------- Core Integrity 0/250 Matter 183/300 Energy 88/100 System Corruption 0% Temperature Cool (0) Movement Core (400) Ox7 Location -10/Mines Parts ------- > --- POWER (1) -------- (None) > --- PROPULSION (2) --- (None) > --- UTILITY (2) ------ Large Storage Unit Trap Extractor (0/4) > --- WEAPON (2) ------- Light Assault Rifle > --- INVENTORY (15) --- Ion Engine Ion Engine Medium Laser Assault Rifle Light Assault Rifle Mini Grenade Launcher Mini Grenade Launcher Makeshift Hammer Peak State ------------ > --- POWER ------------ Ion Engine > --- PROPULSION ------- Aluminum Leg > --- UTILITY ---------- Large Storage Unit Trap Extractor > --- WEAPON ----------- Medium Laser Assault Rifle > --- INVENTORY -------- Ion Engine Ion Engine Assault Rifle Light Assault Rifle Light Assault Rifle Grenade Launcher [Rating: 7] Favorites ----------- Power Ion Engine Engine Ion Engine Propulsion Aluminum Leg Leg Aluminum Leg Utility Large Storage Unit Device Trap Extractor Storage Large Storage Unit Weapon Assault Rifle Energy Gun Medium Laser Ballistic Gun Assault Rifle Launcher Grenade Launcher Build | -11 -10 -10 ------- Run | Yrd Mat Min Slots Evolved . | . . . Power . | . . . Propulsion . | . . . Utility . | . . . Weapon . | . . . Parts Attached 10 | 5 4 1 Power 1 | 1 . . Engine 1 | 1 . . Core . | . . . Reactor . | . . . Propulsion 2 | 2 . . Treads . | . . . Leg 2 | 2 . . Wheel . | . . . Hover . | . . . Flight . | . . . Utility 2 | . 2 . Device 1 | . 1 . Storage 1 | . 1 . Processor . | . . . Hackware . | . . . Protection . | . . . Artifact . | . . . Weapon 5 | 2 2 1 Energy Gun 1 | 1 . . Energy Cannon . | . . . Ballistic Gun 3 | 1 1 1 Ballistic Cannon . | . . . Launcher 1 | . 1 . Special Weapon . | . . . Impact Weapon . | . . . Slashing Weapon . | . . . Piercing Weapon . | . . . Special Melee Weapon . | . . . Unidentified Prototypes . | . . . Parts Lost 6 | . 4 2 Power 1 | . 1 . Propulsion 2 | . 2 . Utility . | . . . Weapon 3 | . 1 2 Highest Loss Streak 2 | . 2 2 To Critical Strikes . | . . . Average Slot Usage (%) 61 | . 71 56 Engine 3 | . 11 . Leg 4 | . 14 . Device 10 | . 3 14 Storage 13 | . 12 14 Energy Gun 3 | . 11 . Ballistic Gun 13 | . 13 14 Launcher 10 | . 2 13 Naked Turns . | . . . Heaviest Build 31 | 9 31 27 Greatest Support 20 | 20 20 3 Greatest Overweight (x) 8 | . 8 8 Average Overweight (x) 5 | . 2 8 Largest Inventory Capacity 15 | 5 15 15 Average Capacity 14 | 5 14 15 Most Carried 9 | 5 8 9 Average Carried 7 | 2 5 8 Final Capacity 15 | 5 15 15 Final Carried 8 | 2 8 8 Class Distribution -------------------- 100% | Mutant Dominant Class ---------------- Mutant | -10/Materials Mutant | -10/Mines Resources | -11 -10 -10 ----------- Run | Yrd Mat Min Matter Collected 287 | 167 120 . Remotely . | . . . Salvage Created 266 | . 249 17 Parts 20 | . 19 1 Haulers Intercepted . | . . . Recyclers Shooed . | . . . Parts Field Recycled . | . . . Retrieved Matter . | . . . Parts Self-Destructed . | . . . Prevented . | . . . Kills | -11 -10 -10 ------- Run | Yrd Mat Min Combat Hostiles Destroyed 10 | . 9 1 Guns 6 | . 5 1 AOE 3 | . 3 . Classes Destroyed 4 | . 4 . Worker 1 | . 1 . Builder 2 | . 2 . Swarmer 4 | . 3 1 Grunt 6 | . 6 . Best Kill Streak 5 | . 5 1 Combat Bots Only 3 | . 3 1 Max Kills in Single Turn 2 | . 2 1 Gunslinging . | . . . Exploded 2 | . 2 . Melee . | . . . Uniques/NPCs Destroyed . | . . . Combat | -11 -10 -10 -------- Run | Yrd Mat Min Hostile Shots Fired 115 | . 68 47 Missed 21 | . 14 7 Damage Taken 951 | . 623 328 Core 251 | . 137 114 Absorbed by Shields . | . . . Core Remaining (%) 100 | 100 . . Volleys Fired 40 | . 29 11 Largest 2 | . 2 2 Hottest 70 | . 70 40 Shots Fired 67 | . 55 12 Gun 62 | . 50 12 Cannon . | . . . Launcher 5 | . 5 . Special . | . . . Kinetic 38 | . 26 12 Thermal 24 | . 24 . Explosive 5 | . 5 . Electromagnetic . | . . . Robot Hit Streak 7 | . 7 2 Robot Miss Streak 3 | . 2 3 Penetration Max . | . . . Secondary Targets 1 | . 1 . Max Gunslinging Chain 1 | . 1 . Shots Hit Robots 32 | . 29 3 Core Hits 21 | . 19 2 Critical Kills . | . . . Critical Parts Destroyed . | . . . Critical Strikes 5 | . 5 . Burn 5 | . 5 . Melee Attacks . | . . . Impact . | . . . Slashing . | . . . Piercing . | . . . Sneak Attacks . | . . . Combat Hostiles . | . . . Follow-up Attacks . | . . . Damage Inflicted 832 | . 783 49 Guns 444 | . 399 45 Cannons . | . . . Explosions 376 | . 376 . Melee . | . . . Ramming 12 | . 8 4 Kinetic 207 | . 162 45 Thermal 237 | . 237 . Explosive 376 | . 376 . Electromagnetic . | . . . Impact . | . . . Slashing . | . . . Piercing . | . . . Highest Corruption . | . . . Average Corruption . | . . . Corruption Purged . | . . . Corruption Blocked . | . . . Overload Shots . | . . . Overflow Damage . | . . . Projectiles . | . . . Explosions . | . . . Melee . | . . . Knockbacks 1 | . 1 . Impact 1 | . 1 . Kinetic . | . . . Secondary . | . . . Self-Inflicted Damage 1 | . . 1 Shots . | . . . Rammed 2 | . . 2 Targets Rammed 4 | 1 1 2 Kicked 2 | 1 1 . Crushed . | . . . Highest Temperature 292 | . 292 . Average Temperature 99 | . 99 . Received Heat Transfer 282 | . 282 . Siege Activations . | . . . Robots Corrupted . | . . . Combat Hostiles . | . . . Parts Fried . | . . . Impact Corruptions . | . . . Robots Melted 1 | . 1 . Combat Hostiles 1 | . 1 . Parts Melted 1 | . 1 . Heat Transferred 1073 | . 1073 . Parts Sabotaged . | . . . Parts Stolen . | . . . Parts Stripped . | . . . Power Chain Reactions . | . . . Alert | -11 -10 -10 ------- Run | Yrd Mat Min Peak Influence 170 | . 170 61 Initial 46 | . . 46 Average 36 | . 92 13 Maximum Alert Level . | . . . Low Security (%) 100 | 100 100 100 Level 1 . | . . . Level 2 . | . . . Level 3 . | . . . Level 4 . | . . . Level 5 . | . . . High Security . | . . . Max Security . | . . . Squads Dispatched 1 | . 1 . Investigation 1 | . 1 . Extermination . | . . . Reinforcement . | . . . Assault . | . . . Garrison . | . . . Intercept . | . . . Searches Triggered . | . . . Construction Impeded . | . . . Haulers Reinforced . | . . . Active Scanning Responses . | . . . Cargo Convoy Interrupts . | . . . Stealth | -11 -10 -10 --------- Run | Yrd Mat Min Distress Signals 4 | . 3 1 Communications Jammed . | . . . Distress Signals . | . . . Times Spotted 28 | . 23 5 Peak Tracking Total 5 | . 5 3 Tactical Retreats 8 | . 5 3 Traps | -11 -10 -10 ------- Run | Yrd Mat Min Traps Triggered 1 | . 1 . Indirectly . | . . . Trap Hack Attempts . | . . . Triggered . | . . . Disarmed . | . . . Reprogrammed . | . . . Reused . | . . . Traps Extracted . | . . . Installed . | . . . Triggered . | . . . Machines | -11 -10 -10 ---------- Run | Yrd Mat Min Machines Disabled . | . . . Max in Single Turn . | . . . Machines Repaired . | . . . Machines Dismantled . | . . . Machines Sabotaged . | . . . Overloaded Fab Kills . | . . . Hacking | -11 -10 -10 --------- Run | Yrd Mat Min Machines Accessed . | . . . Terminals . | . . . Fabricators . | . . . Repair Stations . | . . . Recycling Units . | . . . Scanalyzers . | . . . Garrison Access . | . . . Total Hacks . | . . . Successful . | . . . Failed . | . . . Catastrophic . | . . . Database Lockouts . | . . . Manual . | . . . Terminals . | . . . Fabricators . | . . . Repair Stations . | . . . Recycling Units . | . . . Scanalyzers . | . . . Garrison Access . | . . . Terminal Hacks . | . . . Fabricator Hacks . | . . . Repair Station Hacks . | . . . Recycling Unit Hacks . | . . . Scanalyzer . | . . . Garrison Access Hacks . | . . . Unauthorized Hacks . | . . . Terminals . | . . . Fabricators . | . . . Repair Stations . | . . . Recycling Units . | . . . Scanalyzers . | . . . Garrison Access . | . . . Data Cores Recovered . | . . . Used . | . . . Hacking Detections . | . . . Full Trace Events . | . . . Feedback Events . | . . . Feedback Blocked . | . . . Robot Schematics Acquired . | . . . Robots Built . | . . . Authchips . | . . . Time . | . . . Total Robot Build Rating . | . . . Part Schematics Acquired . | . . . Parts Built . | . . . Authchips . | . . . Time . | . . . Total Part Build Rating . | . . . Parts Repaired . | . . . Time . | . . . Parts Recycled . | . . . Recycled Matter . | . . . Retrieved Matter . | . . . Retrieved Components . | . . . Parts Scanalyzed . | . . . Part Schematics Acquired . | . . . Parts Damaged . | . . . Bothacking | -11 -10 -10 ------------ Run | Yrd Mat Min Used RIF Installer . | . . . Robots Hacked . | . . . Non-combat . | . . . Combat . | . . . Robot Hacks Applied . | . . . Relay Couplers Released . | . . . Fabnet Peak Effective % . | . . . Robots Rewired . | . . . Allies Hacked . | . . . Hacks Repelled . | . . . Allies | -11 -10 -10 -------- Run | Yrd Mat Min Total Allies . | . . . Largest Group . | . . . Highest-Rated Group . | . . . Highest-Rated Ally . | . . . Total Orders . | . . . Ally Attacks . | . . . Total Damage . | . . . Kills . | . . . Allies Corrupted . | . . . Allies Melted . | . . . Intel | -11 -10 -10 ------- Run | Yrd Mat Min Robot Analysis Total . | . . . Derelict Logs Recovered 1 | . . 1 Drone Launches . | . . . Drone Recoveries . | . . . Exploration | -11 -10 -10 ------------- Run | Yrd Mat Min Turns Passed 2582 | 71 752 1759 Spaces Moved 710 | 67 259 384 Core 439 | 31 24 384 Treads . | . . . Legs 271 | 36 235 . Wheels . | . . . Hover . | . . . Flight . | . . . Fastest Speed 50 | 50 120 450 Average Speed 344 | 87 253 450 Slowest Speed 450 | 120 450 450 Overloaded Moves . | . . . Propulsion Burnouts . | . . . Robots Hopped . | . . . Cave-ins Triggered . | . . . Exploration Rate (%) 35 | 3 45 59 Regions Visited 2 Branch Regions 1 Pre-discovered Areas 1 | . . 1 Known Exits Taken . | . . . Unknown Exits Taken 2 | 1 1 . Scrap Searched . | . . . Spaces Dug . | . . . Terrain Destroyed 20 | . 20 . Melee . | . . . Projectile . | . . . AOE 20 | . 20 . Terrain Rammed . | . . . Walls Destroyed . | . . . Machines Disabled . | . . . Actions | -11 -10 -10 --------- Run | Yrd Mat Min Total 780 | 79 302 399 Wait . | . . . Move 708 | 66 258 384 Hop . | . . . Pick Up 17 | 7 9 1 Fast Attach . | . . . Attach 10 | 5 4 1 Detach 1 | . 1 . Swap . | . . . Drop . | . . . Fire 40 | . 29 11 Melee . | . . . Ram 2 | . . 2 Kick 2 | 1 1 . Crush . | . . . Escape Stasis . | . . . Rewire . | . . . Trap . | . . . Miscellaneous . | . . . Route ------- -11/Scrapyard -10/Materials -10/Mines History --------- Turn | Location | Event 4 | -11/Scrapyard | Discovered new exit (range 16) 72 | -11/Scrapyard | Entered Materials 305 | -10/Materials | Build established: Mutant 712 | -10/Materials | Core integrity fell below 50% 784 | -10/Materials | Discovered new exit (range 8) 824 | -10/Materials | Entered Mines 1040 | -10/Mines | Learned 4 Materials zone layouts 1144 | -10/Mines | A weapon hastily lodged in a ceiling crevice suddenly fell to the ground 1834 | -10/Mines | Learned location of Storage (-9) 2207 | -10/Mines | Found a hidden stash of uninstalled traps 2571 | -10/Mines | Core integrity fell below 20% 2583 | -10/Mines | Destroyed by S-10 Pest with Light Assault Rifle Last Messages --------------- when you have Unaware?" Acquired Mak. Hammer. K-01 Serf cleans the Pressure Siphon. T-07 Excavator is excavating. A derelict emerges from the shadows: "Are any of them following you? I'm here trying to lose some heat after our second raid on Storage failed. Whatever you do stay away from that place, they've tightened security following our previous successful raids." World map updated: -9/Storage. WK-W1D(g): "We scattered so the Unaware couldn't effectively use their advantage in numbers, and I suggest you do the same." WK-W1D(g) slips back into the shadows. A stash of uninstalled traps is collected here! K-01 Serf cleans the Pressure Siphon. Grenade Launcher destroyed. Assault Rifle destroyed. S-10 Pest destroyed. Map ----- +----------------------------------------------------+ | ?????????????#### ######## #?????????????? | | ?????????????# #?????? ??????? | | ?????????????# #############?????? ????? | | ?????????????# #?????????????????? ????? | | ?????????????# #?????????????????? ????? | | ?????????????# #?????????????????? ????? | | ?????????????# ##????????????????# ?????? | | ????????????## ##?????????????## ?????? | | ???????????## ###???????????# ?????? | | ???????????# ##??????????# ??????? | | ???????????## #??####????# ??????? | | ????????????## """" #?## ##???# #??????? | | ????????????## """" ### ##??# #??????? | | ???????????## """" ##?# #??????? | | ??????????## ### #??????? | | ?????????## #### ### ## #??????? | | ?????????# ##?## #??????? | | ?????????# #??# ####???? | | ????????## #??# #???? | | ???????## #??## #???? | | ????#### ##???## ###### ### # | | ????# ##?????## ##????# # | | ???# #???????#### ##?????# ##### | | ???# ##??????????# ###??????# #???? | | ???## ############# #????????# ##### | | ????## ### s@%= s #????????# # | | ?????######?# ########## #????????##### # | | ????????????# #????????# #????????????# # | | ????????????# #????????# #????????????# # | | ???????????? ????????# #????????????# # | | ???????????? "????????# #????????????# # | | ???????????? "????????# #????????????# # | | ???????????? "???????? #???????????## # | | ???????????? ????????####??????????## # | | ???????????? ??????????????????????# | | ???????????# ??????????????????????# | | ???????????####??????????????? | | ?????????????????????????????########## | | ??????????????????????????????????????# | | ??????????????????????????????????????# | | ??????????????????????????????????????## | | ???????????????????????????????????????## | | ????????????????????????????????????????## | | ?????????????????????????????????????????# | | ?????????????????????????????????????????? | | ?????????????????????????????????????????? | | ?????????????????????????????????????????? | | ?????????????????????????????????????????? | | ?????????????????????????????????????????? | | ?????????????????????????????????????????? | +----------------------------------------------------+ Best States ------------- Heat Dissipation 25 Energy Generation 10 Energy Capacity 250 Matter Stores 261 Matter Capacity 300 Sight Range 16 Terrain Scan Density 10 Evasion (%) 55 Trap Extractor Capacity 4 Item Schematics ----------------- None Robot Schematics ------------------ None Fabricated ------------ Nothing Alien Tech Used ----------------- None Achievements -------------- None Challenges ------------ None Game ------ Seed ThermalShieldAmplifier Manual? 0 Play Time 00:07:55 Cumulative 4.9 hours Start 2024.03.31 @ 11:18:38 End 2024.03.31 @ 11:24:45 Sessions 1 Manual Loads 0 Difficulty Rogue Special Mode None Game No. 25 Rogue 25 Adventurer 0 Explorer 0 Win Type - Total 0 Types 0/0/0/0/0/0/0/0/0 Lore% 8 Gallery% 7 Achievement% 9 Wizard Run 0 Options --------- Layout 1 ASCII 0 Keyboard 0 Movement Arrows Keybinds 0 Fullscreen 1 Font 24/Smallcaps Map View 50x35 Zoom Use 0% Tactical HUD 0 Map Filters NONE Filters NONE Steam 1 RUN: e6764e37-bb54-401a-846a-dbd0c231a496